[Event "Titled Tuesday Blitz December 20 Late 2022"]
[White "Caruana, Fabiano"]
[Black "ChessBrah"]
[WhiteFideId "2020009"]
[WhiteElo "3020"]
[BlackElo "2908"]
[Result "1-0"]
[Round "11"]
[TimeControl "180+1"]
[Date "2022.12.21"]
[WhiteClock "0:00:21"]
[BlackClock "0:00:01"]

1. d3 {[%clk 0:03:00]}  d5 {[%clk 0:02:58]} 2. g3 {[%clk 0:03:01]}  Nc6 {[%clk 0:02:58]} 3. Bg2 {[%clk 0:03:00]}  e5 {[%clk 0:02:59]} 4. Nf3 {[%clk 0:02:59]}  Nf6 {[%clk 0:02:36]} 5. O-O {[%clk 0:02:57]}  Be7 {[%clk 0:02:35]} 6. a3 {[%clk 0:02:56]}  a5 {[%clk 0:02:32]} 7. b3 {[%clk 0:02:56]}  O-O {[%clk 0:02:27]} 8. e3 {[%clk 0:02:54]}  Re8 {[%clk 0:02:25]} 9. Bb2 {[%clk 0:02:54]}  Bf8 {[%clk 0:02:23]} 10. Nbd2 {[%clk 0:02:54]}  h6 {[%clk 0:02:19]} 11. Qe2 {[%clk 0:02:52]}  e4 {[%clk 0:02:11]} 12. dxe4 {[%clk 0:02:47]}  dxe4 {[%clk 0:02:11]} 13. Nd4 {[%clk 0:02:46]}  Bg4 {[%clk 0:01:31]} 14. Qe1 {[%clk 0:02:45]}  Ne5 {[%clk 0:01:25]} 15. h3 {[%clk 0:02:37]}  Bd7 {[%clk 0:01:19]} 16. Kh2 {[%clk 0:02:31]}  c5 {[%clk 0:01:17]} 17. Ne2 {[%clk 0:02:32]}  Bc6 {[%clk 0:01:17]} 18. Bxe5 {[%clk 0:02:28]}  Rxe5 {[%clk 0:01:16]} 19. Nc4 {[%clk 0:02:28]}  Re8 {[%clk 0:01:12]} 20. a4 {[%clk 0:02:28]}  Nd5 {[%clk 0:01:07]} 21. Rd1 {[%clk 0:02:25]}  Qf6 {[%clk 0:01:07]} 22. Nf4 {[%clk 0:02:20]}  Nb4 {[%clk 0:01:04]} 23. c3 {[%clk 0:02:11]}  Nd3 {[%clk 0:00:36]} 24. Nxd3 {[%clk 0:02:11]}  exd3 {[%clk 0:00:37]} 25. Bxc6 {[%clk 0:02:08]}  Qxc6 {[%clk 0:00:37]} 26. Rxd3 {[%clk 0:02:08]}  b5 {[%clk 0:00:37]} 27. axb5 {[%clk 0:02:07]}  Qxb5 {[%clk 0:00:38]} 28. Qb1 {[%clk 0:01:35]}  a4 {[%clk 0:00:33]} 29. Nd2 {[%clk 0:01:33]}  a3 {[%clk 0:00:25]} 30. Qc2 {[%clk 0:01:33]}  Red8 {[%clk 0:00:23]} 31. Rxd8 {[%clk 0:01:31]}  Rxd8 {[%clk 0:00:23]} 32. Nc4 {[%clk 0:01:31]}  Ra8 {[%clk 0:00:15]} 33. Ra1 {[%clk 0:01:31]}  Qb7 {[%clk 0:00:13]} 34. Rxa3 {[%clk 0:01:30]}  Rd8 {[%clk 0:00:13]} 35. Ra1 {[%clk 0:01:22]}  Qf3 {[%clk 0:00:12]} 36. Re1 {[%clk 0:01:17]}  h5 {[%clk 0:00:11]} 37. Qe2 {[%clk 0:01:16]}  Qf6 {[%clk 0:00:11]} 38. Rc1 {[%clk 0:00:59]}  h4 {[%clk 0:00:11]} 39. g4 {[%clk 0:00:59]}  Qe6 {[%clk 0:00:10]} 40. Kg2 {[%clk 0:00:57]}  Rb8 {[%clk 0:00:11]} 41. Qc2 {[%clk 0:00:46]}  Qc6+ {[%clk 0:00:11]} 42. e4 {[%clk 0:00:45]}  Re8 {[%clk 0:00:07]} 43. Re1 {[%clk 0:00:43]}  g6 {[%clk 0:00:07]} 44. Qd3 {[%clk 0:00:42]}  Qb7 {[%clk 0:00:07]} 45. Nd2 {[%clk 0:00:39]}  Qa8 {[%clk 0:00:06]} 46. Nf3 {[%clk 0:00:38]}  Qb7 {[%clk 0:00:06]} 47. Qc4 {[%clk 0:00:39]}  Be7 {[%clk 0:00:05]} 48. Ne5 {[%clk 0:00:33]}  Bf6 {[%clk 0:00:03]} 49. Nxg6 {[%clk 0:00:33]}  Qc7 {[%clk 0:00:01]} 50. e5 {[%clk 0:00:25]}  Bg7 {[%clk 0:00:01]} 51. Nxh4 {[%clk 0:00:21]} 1-0


[Site "https://www.chess.com"]

[Event "Titled Tuesday Blitz December 20 Late 2022"]
[White "Clawitter, Craig"]
[Black "Sarkar, Justin"]
[WhiteFideId "2023105"]
[BlackFideId "2010011"]
[WhiteElo "2217"]
[BlackElo "2239"]
[Result "0-1"]
[Round "11"]
[TimeControl "180+1"]
[Date "2022.12.21"]
[WhiteClock "0:00:01"]
[BlackClock "0:00:02"]

1. e4 {[%clk 0:02:55]}  e5 {[%clk 0:02:52]} 2. Nf3 {[%clk 0:02:55]}  Nc6 {[%clk 0:02:51]} 3. Bb5 {[%clk 0:02:55]}  a6 {[%clk 0:02:50]} 4. Ba4 {[%clk 0:02:55]}  Nf6 {[%clk 0:02:49]} 5. O-O {[%clk 0:02:56]}  Be7 {[%clk 0:02:48]} 6. d3 {[%clk 0:02:56]}  b5 {[%clk 0:02:46]} 7. Bb3 {[%clk 0:02:56]}  d6 {[%clk 0:02:45]} 8. a4 {[%clk 0:02:56]}  Bd7 {[%clk 0:02:31]} 9. Nc3 {[%clk 0:02:54]}  Rb8 {[%clk 0:02:23]} 10. axb5 {[%clk 0:02:54]}  axb5 {[%clk 0:02:22]} 11. Nd5 {[%clk 0:02:54]}  O-O {[%clk 0:01:59]} 12. c3 {[%clk 0:02:48]}  b4 {[%clk 0:01:42]} 13. c4 {[%clk 0:02:46]}  Bg4 {[%clk 0:01:37]} 14. Be3 {[%clk 0:02:44]}  Nd7 {[%clk 0:01:22]} 15. h3 {[%clk 0:02:39]}  Bxf3 {[%clk 0:01:13]} 16. Qxf3 {[%clk 0:02:39]}  Nc5 {[%clk 0:01:12]} 17. Qd1 {[%clk 0:02:20]}  Ne6 {[%clk 0:01:05]} 18. f4 {[%clk 0:02:13]}  exf4 {[%clk 0:01:02]} 19. Nxf4 {[%clk 0:02:11]}  Nxf4 {[%clk 0:00:59]} 20. Bxf4 {[%clk 0:02:07]}  Bf6 {[%clk 0:00:57]} 21. Ra2 {[%clk 0:01:33]}  Be5 {[%clk 0:00:48]} 22. Be3 {[%clk 0:01:32]}  Bd4 {[%clk 0:00:46]} 23. Qf3 {[%clk 0:01:17]}  Qg5 {[%clk 0:00:41]} 24. Bf2 {[%clk 0:01:01]}  Qe5 {[%clk 0:00:16]} 25. Ra6 {[%clk 0:00:52]}  Bxf2+ {[%clk 0:00:15]} 26. Qxf2 {[%clk 0:00:50]}  Nd4 {[%clk 0:00:15]} 27. Bd1 {[%clk 0:00:46]}  f5 {[%clk 0:00:14]} 28. exf5 {[%clk 0:00:24]}  Rxf5 {[%clk 0:00:13]} 29. Qe1 {[%clk 0:00:24]}  Rxf1+ {[%clk 0:00:10]} 30. Qxf1 {[%clk 0:00:23]}  Rf8 {[%clk 0:00:09]} 31. Bf3 {[%clk 0:00:19]}  Nxf3+ {[%clk 0:00:09]} 32. gxf3 {[%clk 0:00:20]}  Qg3+ {[%clk 0:00:09]} 33. Qg2 {[%clk 0:00:21]}  Rxf3 {[%clk 0:00:08]} 34. Qxg3 {[%clk 0:00:11]}  Rxg3+ {[%clk 0:00:09]} 35. Kh2 {[%clk 0:00:09]}  Rxd3 {[%clk 0:00:08]} 36. Rc6 {[%clk 0:00:10]}  Rb3 {[%clk 0:00:08]} 37. Rxc7 {[%clk 0:00:09]}  Rxb2+ {[%clk 0:00:08]} 38. Kg3 {[%clk 0:00:09]}  Rc2 {[%clk 0:00:08]} 39. Rd7 {[%clk 0:00:07]}  Rxc4 {[%clk 0:00:07]} 40. Rxd6 {[%clk 0:00:08]}  b3 {[%clk 0:00:07]} 41. Rb6 {[%clk 0:00:09]}  Rc3+ {[%clk 0:00:07]} 42. Kg4 {[%clk 0:00:09]}  h6 {[%clk 0:00:07]} 43. h4 {[%clk 0:00:09]}  Kh7 {[%clk 0:00:06]} 44. h5 {[%clk 0:00:09]}  Rc4+ {[%clk 0:00:06]} 45. Kg3 {[%clk 0:00:08]}  Rc3+ {[%clk 0:00:06]} 46. Kg4 {[%clk 0:00:08]}  Rd3 {[%clk 0:00:06]} 47. Kf4 {[%clk 0:00:08]}  Kg8 {[%clk 0:00:06]} 48. Rb7 {[%clk 0:00:07]}  Kf8 {[%clk 0:00:06]} 49. Kf5 {[%clk 0:00:07]}  Re3 {[%clk 0:00:05]} 50. Kg6 {[%clk 0:00:05]}  Re6+ {[%clk 0:00:05]} 51. Kh7 {[%clk 0:00:04]}  Re5 {[%clk 0:00:04]} 52. Kg6 {[%clk 0:00:04]}  Rg5+ {[%clk 0:00:04]} 53. Kh7 {[%clk 0:00:04]}  Rxh5 {[%clk 0:00:04]} 54. Rb8+ {[%clk 0:00:03]}  Kf7 {[%clk 0:00:04]} 55. Rb7+ {[%clk 0:00:03]}  Kf6 {[%clk 0:00:03]} 56. Rb6+ {[%clk 0:00:03]}  Kg5 {[%clk 0:00:02]} 57. Kxg7 {[%clk 0:00:03]}  Rh3 {[%clk 0:00:02]} 58. Rg6+ {[%clk 0:00:02]}  Kf5 {[%clk 0:00:02]} 59. Rb6 {[%clk 0:00:01]}  Ke4 {[%clk 0:00:02]} 0-1


[Site "https://www.chess.com"]

[Event "Titled Tuesday Blitz December 20 Late 2022"]
[White "D`Arruda, Ricardo D."]
[Black "Curtis, John"]
[WhiteFideId "100692"]
[BlackFideId "3200256"]
[WhiteElo "2435"]
[BlackElo "2203"]
[Result "1-0"]
[Round "11"]
[TimeControl "180+1"]
[Date "2022.12.21"]
[WhiteClock "0:01:10"]
[BlackClock "0:00:18"]

1. d4 {[%clk 0:02:51]}  Nf6 {[%clk 0:02:59]} 2. Nf3 {[%clk 0:02:50]}  e6 {[%clk 0:02:59]} 3. g3 {[%clk 0:02:49]}  d5 {[%clk 0:02:59]} 4. Bg2 {[%clk 0:02:50]}  c5 {[%clk 0:02:59]} 5. O-O {[%clk 0:02:50]}  Nc6 {[%clk 0:02:57]} 6. c4 {[%clk 0:02:50]}  dxc4 {[%clk 0:02:56]} 7. Qa4 {[%clk 0:02:48]}  cxd4 {[%clk 0:02:44]} 8. Nxd4 {[%clk 0:02:47]}  Bd7 {[%clk 0:02:43]} 9. Nxc6 {[%clk 0:02:47]}  Qc8 {[%clk 0:02:04]} 10. Qxc4 {[%clk 0:02:44]}  Bxc6 {[%clk 0:02:03]} 11. Bxc6+ {[%clk 0:02:43]}  Qxc6 {[%clk 0:02:02]} 12. Qxc6+ {[%clk 0:02:43]}  bxc6 {[%clk 0:02:03]} 13. Nc3 {[%clk 0:02:43]}  Nd5 {[%clk 0:01:57]} 14. Bd2 {[%clk 0:02:42]}  Nxc3 {[%clk 0:01:57]} 15. Bxc3 {[%clk 0:02:41]}  f6 {[%clk 0:01:53]} 16. Rfd1 {[%clk 0:02:39]}  Bc5 {[%clk 0:01:50]} 17. Rd3 {[%clk 0:02:31]}  Rd8 {[%clk 0:01:47]} 18. Rad1 {[%clk 0:02:29]}  Rxd3 {[%clk 0:01:46]} 19. Rxd3 {[%clk 0:02:30]}  Ke7 {[%clk 0:01:43]} 20. e4 {[%clk 0:02:29]}  Rd8 {[%clk 0:01:39]} 21. Rxd8 {[%clk 0:02:29]}  Kxd8 {[%clk 0:01:38]} 22. Kf1 {[%clk 0:02:29]}  Ke7 {[%clk 0:01:32]} 23. Ke2 {[%clk 0:02:28]}  g6 {[%clk 0:01:32]} 24. f3 {[%clk 0:02:28]}  f5 {[%clk 0:01:32]} 25. g4 {[%clk 0:02:28]}  fxe4 {[%clk 0:01:28]} 26. fxe4 {[%clk 0:02:27]}  Bd6 {[%clk 0:01:28]} 27. h3 {[%clk 0:02:26]}  a6 {[%clk 0:01:27]} 28. Kd3 {[%clk 0:02:26]}  Kd7 {[%clk 0:01:25]} 29. Kc4 {[%clk 0:02:26]}  Kc7 {[%clk 0:01:22]} 30. b3 {[%clk 0:02:21]}  Bg3 {[%clk 0:01:18]} 31. Ba5+ {[%clk 0:02:16]}  Kd7 {[%clk 0:01:16]} 32. Bb6 {[%clk 0:02:12]}  Be1 {[%clk 0:01:14]} 33. Bd4 {[%clk 0:02:09]}  Kc7 {[%clk 0:01:08]} 34. Kc5 {[%clk 0:02:04]}  Ba5 {[%clk 0:01:02]} 35. Be5+ {[%clk 0:02:00]}  Kd7 {[%clk 0:01:01]} 36. Bf4 {[%clk 0:01:51]}  Bd8 {[%clk 0:00:59]} 37. Be5 {[%clk 0:01:37]}  Ba5 {[%clk 0:00:58]} 38. b4 {[%clk 0:01:26]}  Bd8 {[%clk 0:00:57]} 39. a3 {[%clk 0:01:24]}  a5 {[%clk 0:00:43]} 40. bxa5 {[%clk 0:01:20]}  Bxa5 {[%clk 0:00:42]} 41. a4 {[%clk 0:01:20]}  Bd8 {[%clk 0:00:37]} 42. Bc3 {[%clk 0:01:15]}  Bc7 {[%clk 0:00:25]} 43. a5 {[%clk 0:01:13]}  Bg3 {[%clk 0:00:19]} 44. Kb6 {[%clk 0:01:11]}  Bf2+ {[%clk 0:00:18]} 45. Kb7 {[%clk 0:01:10]} 1-0


[Site "https://www.chess.com"]

[Event "Titled Tuesday Blitz December 20 Late 2022"]
[White "Delorme, Axel"]
[Black "Tologon tegin, Semetei"]
[WhiteFideId "632023"]
[BlackFideId "13800574"]
[WhiteElo "2478"]
[BlackElo "2264"]
[Result "0-1"]
[Round "11"]
[TimeControl "180+1"]
[Date "2022.12.20"]
[WhiteClock "0:01:01"]
[BlackClock "0:01:05"]

1. e4 {[%clk 0:03:00]}  e5 {[%clk 0:02:55]} 2. Nf3 {[%clk 0:03:01]}  Nc6 {[%clk 0:02:54]} 3. Bb5 {[%clk 0:03:01]}  a6 {[%clk 0:02:54]} 4. Ba4 {[%clk 0:03:02]}  Nf6 {[%clk 0:02:54]} 5. O-O {[%clk 0:03:03]}  Be7 {[%clk 0:02:54]} 6. Re1 {[%clk 0:03:03]}  b5 {[%clk 0:02:54]} 7. Bb3 {[%clk 0:03:04]}  O-O {[%clk 0:02:54]} 8. a4 {[%clk 0:03:03]}  b4 {[%clk 0:02:53]} 9. c3 {[%clk 0:02:59]}  d6 {[%clk 0:02:53]} 10. h3 {[%clk 0:02:58]}  Rb8 {[%clk 0:02:52]} 11. d4 {[%clk 0:02:58]}  bxc3 {[%clk 0:02:50]} 12. bxc3 {[%clk 0:02:49]}  exd4 {[%clk 0:02:45]} 13. cxd4 {[%clk 0:02:50]}  d5 {[%clk 0:02:45]} 14. e5 {[%clk 0:02:49]}  Ne4 {[%clk 0:02:45]} 15. Nbd2 {[%clk 0:02:49]}  Bf5 {[%clk 0:02:45]} 16. Bc2 {[%clk 0:02:40]}  Nc3 {[%clk 0:02:44]} 17. Bxf5 {[%clk 0:02:37]}  Nxd1 {[%clk 0:02:44]} 18. Rxd1 {[%clk 0:02:37]}  Bb4 {[%clk 0:02:38]} 19. Bd3 {[%clk 0:02:35]}  Bc3 {[%clk 0:02:37]} 20. Ra3 {[%clk 0:02:30]}  Bxd4 {[%clk 0:02:37]} 21. Nxd4 {[%clk 0:02:27]}  Nxd4 {[%clk 0:02:38]} 22. Bxa6 {[%clk 0:02:24]}  c5 {[%clk 0:02:34]} 23. Bf1 {[%clk 0:02:22]}  Qa5 {[%clk 0:02:16]} 24. Nf3 {[%clk 0:01:52]}  Nxf3+ {[%clk 0:02:14]} 25. Rxf3 {[%clk 0:01:53]}  c4 {[%clk 0:01:47]} 26. Ba3 {[%clk 0:01:40]}  Rfc8 {[%clk 0:01:43]} 27. Bd6 {[%clk 0:01:29]}  Rb3 {[%clk 0:01:42]} 28. Be2 {[%clk 0:01:20]}  c3 {[%clk 0:01:31]} 29. Rc1 {[%clk 0:01:16]}  d4 {[%clk 0:01:08]} 30. Bb5 {[%clk 0:01:06]}  Rxb5 {[%clk 0:01:05]} 31. axb5 {[%clk 0:01:07]}  Qxb5 {[%clk 0:01:06]} 32. h4 {[%clk 0:01:01]}  d3 {[%clk 0:01:05]} 0-1


[Site "https://www.chess.com"]

[Event "Titled Tuesday Blitz December 20 Late 2022"]
[White "Denishev, Marat"]
[Black "Reprintsev, Alexander"]
[WhiteFideId "24131563"]
[BlackFideId "14100541"]
[WhiteElo "2194"]
[BlackElo "2230"]
[Result "0-1"]
[Round "11"]
[TimeControl "180+1"]
[Date "2022.12.20"]
[WhiteClock "0:00:19"]
[BlackClock "0:00:20"]

1. e4 {[%clk 0:03:00]}  d5 {[%clk 0:02:59]} 2. exd5 {[%clk 0:03:00]}  Qxd5 {[%clk 0:02:59]} 3. Nc3 {[%clk 0:03:00]}  Qa5 {[%clk 0:02:59]} 4. d4 {[%clk 0:03:00]}  Nf6 {[%clk 0:02:59]} 5. Nf3 {[%clk 0:02:59]}  Nc6 {[%clk 0:02:58]} 6. Bb5 {[%clk 0:02:58]}  Ne4 {[%clk 0:02:57]} 7. Qd3 {[%clk 0:02:35]}  Nxc3 {[%clk 0:02:56]} 8. bxc3 {[%clk 0:02:34]}  a6 {[%clk 0:02:56]} 9. Bxc6+ {[%clk 0:02:33]}  bxc6 {[%clk 0:02:57]} 10. O-O {[%clk 0:02:34]}  Bf5 {[%clk 0:02:55]} 11. Qe2 {[%clk 0:02:26]}  e6 {[%clk 0:02:55]} 12. Ne5 {[%clk 0:02:24]}  Bd6 {[%clk 0:02:54]} 13. Qc4 {[%clk 0:02:02]}  Qb5 {[%clk 0:02:42]} 14. Qxc6+ {[%clk 0:01:57]}  Qxc6 {[%clk 0:02:42]} 15. Nxc6 {[%clk 0:01:58]}  Bxc2 {[%clk 0:02:42]} 16. Be3 {[%clk 0:01:52]}  f6 {[%clk 0:02:39]} 17. Rfc1 {[%clk 0:01:50]}  Be4 {[%clk 0:02:39]} 18. Na5 {[%clk 0:01:46]}  Kd7 {[%clk 0:02:36]} 19. Nc4 {[%clk 0:01:45]}  Be7 {[%clk 0:02:30]} 20. f3 {[%clk 0:01:44]}  Bd3 {[%clk 0:02:27]} 21. Nd2 {[%clk 0:01:39]}  Rhb8 {[%clk 0:02:27]} 22. Nb3 {[%clk 0:01:38]}  a5 {[%clk 0:02:18]} 23. Rd1 {[%clk 0:01:34]}  Bc4 {[%clk 0:02:17]} 24. Nd2 {[%clk 0:01:27]}  Be2 {[%clk 0:02:13]} 25. Re1 {[%clk 0:01:26]}  Bd3 {[%clk 0:02:14]} 26. Bf4 {[%clk 0:01:17]}  Rb2 {[%clk 0:02:08]} 27. Nb3 {[%clk 0:01:15]}  a4 {[%clk 0:02:02]} 28. Nc5+ {[%clk 0:01:13]}  Bxc5 {[%clk 0:02:02]} 29. dxc5 {[%clk 0:01:12]}  Bc4 {[%clk 0:01:56]} 30. Rad1+ {[%clk 0:01:08]}  Kc6 {[%clk 0:01:55]} 31. a3 {[%clk 0:01:06]}  Rb3 {[%clk 0:01:51]} 32. Rd4 {[%clk 0:01:05]}  Rxc3 {[%clk 0:01:48]} 33. Bd2 {[%clk 0:01:00]}  Rc2 {[%clk 0:01:48]} 34. Bb4 {[%clk 0:01:00]}  Bd5 {[%clk 0:01:45]} 35. Rh4 {[%clk 0:00:57]}  h6 {[%clk 0:01:44]} 36. Rg4 {[%clk 0:00:57]}  g5 {[%clk 0:01:44]} 37. h4 {[%clk 0:00:58]}  Rd8 {[%clk 0:01:39]} 38. Rd1 {[%clk 0:00:55]}  f5 {[%clk 0:01:34]} 39. Rgd4 {[%clk 0:00:51]}  Rg8 {[%clk 0:01:33]} 40. h5 {[%clk 0:00:49]}  g4 {[%clk 0:01:33]} 41. fxg4 {[%clk 0:00:48]}  Rxg2+ {[%clk 0:01:31]} 42. Kf1 {[%clk 0:00:48]}  R2xg4 {[%clk 0:01:31]} 43. Ba5 {[%clk 0:00:44]}  Rg1+ {[%clk 0:01:15]} 44. Kf2 {[%clk 0:00:43]}  R8g2+ {[%clk 0:01:15]} 45. Ke3 {[%clk 0:00:43]}  Rxd1 {[%clk 0:01:07]} 46. Rxd1 {[%clk 0:00:44]}  e5 {[%clk 0:01:06]} 47. Rb1 {[%clk 0:00:40]}  f4+ {[%clk 0:01:05]} 48. Kd3 {[%clk 0:00:39]}  Ra2 {[%clk 0:00:57]} 49. Bb4 {[%clk 0:00:34]}  Rh2 {[%clk 0:00:54]} 50. Rg1 {[%clk 0:00:32]}  Rh3+ {[%clk 0:00:53]} 51. Kd2 {[%clk 0:00:31]}  Rxh5 {[%clk 0:00:53]} 52. Rg6+ {[%clk 0:00:31]}  Kb5 {[%clk 0:00:53]} 53. Rg7 {[%clk 0:00:27]}  c6 {[%clk 0:00:52]} 54. Rb7+ {[%clk 0:00:25]}  Kc4 {[%clk 0:00:52]} 55. Rd7 {[%clk 0:00:26]}  Rh2+ {[%clk 0:00:51]} 56. Ke1 {[%clk 0:00:25]}  e4 {[%clk 0:00:44]} 57. Ba5 {[%clk 0:00:20]}  e3 {[%clk 0:00:41]} 58. Bc7 {[%clk 0:00:19]}  Bf3 {[%clk 0:00:20]} 0-1


[Site "https://www.chess.com"]

[Event "Titled Tuesday Blitz December 20 Late 2022"]
[White "Gasparyan, David"]
[Black "Novikova, Galina"]
[WhiteFideId "13311980"]
[BlackFideId "4157095"]
[WhiteElo "2442"]
[BlackElo "1953"]
[Result "0-1"]
[Round "11"]
[TimeControl "180+1"]
[Date "2022.12.21"]
[WhiteClock "0:00:01"]
[BlackClock "0:01:37"]

1. e4 {[%clk 0:03:00]}  e6 {[%clk 0:03:00]} 2. Nf3 {[%clk 0:02:53]}  d5 {[%clk 0:03:01]} 3. exd5 {[%clk 0:02:54]}  exd5 {[%clk 0:03:02]} 4. d4 {[%clk 0:02:54]}  Bg4 {[%clk 0:03:00]} 5. Be2 {[%clk 0:02:53]}  Nc6 {[%clk 0:03:01]} 6. c3 {[%clk 0:02:53]}  Qd7 {[%clk 0:03:01]} 7. O-O {[%clk 0:02:53]}  f6 {[%clk 0:03:01]} 8. Re1 {[%clk 0:02:47]}  O-O-O {[%clk 0:03:00]} 9. h3 {[%clk 0:02:47]}  Be6 {[%clk 0:02:59]} 10. Bf1 {[%clk 0:02:46]}  Kb8 {[%clk 0:02:59]} 11. a4 {[%clk 0:02:45]}  g5 {[%clk 0:02:58]} 12. b4 {[%clk 0:02:41]}  h5 {[%clk 0:02:59]} 13. a5 {[%clk 0:02:34]}  g4 {[%clk 0:02:59]} 14. Nh2 {[%clk 0:02:26]}  gxh3 {[%clk 0:02:59]} 15. g3 {[%clk 0:02:22]}  h4 {[%clk 0:02:59]} 16. g4 {[%clk 0:02:22]}  Bd6 {[%clk 0:02:55]} 17. f4 {[%clk 0:02:18]}  Nh6 {[%clk 0:02:48]} 18. Bxh3 {[%clk 0:02:16]}  Rdg8 {[%clk 0:02:47]} 19. Rxe6 {[%clk 0:01:44]}  Qxe6 {[%clk 0:02:43]} 20. b5 {[%clk 0:01:40]}  Ne7 {[%clk 0:02:38]} 21. Ra2 {[%clk 0:01:32]}  Nxg4 {[%clk 0:02:30]} 22. Nxg4 {[%clk 0:01:28]}  f5 {[%clk 0:02:30]} 23. Re2 {[%clk 0:01:20]}  Qf7 {[%clk 0:02:27]} 24. Rg2 {[%clk 0:00:50]}  fxg4 {[%clk 0:02:27]} 25. Bxg4 {[%clk 0:00:50]}  h3 {[%clk 0:02:23]} 26. Rg3 {[%clk 0:00:45]}  Nf5 {[%clk 0:02:08]} 27. Rd3 {[%clk 0:00:26]}  Rxg4+ {[%clk 0:02:03]} 28. Qxg4 {[%clk 0:00:25]}  Rg8 {[%clk 0:02:03]} 29. Rg3 {[%clk 0:00:17]}  Nxg3 {[%clk 0:01:53]} 30. Qf3 {[%clk 0:00:13]}  Ne4+ {[%clk 0:01:49]} 31. Kf1 {[%clk 0:00:14]}  h2 {[%clk 0:01:46]} 32. b6 {[%clk 0:00:10]}  Rg1+ {[%clk 0:01:44]} 33. Ke2 {[%clk 0:00:10]}  h1=Q {[%clk 0:01:42]} 34. bxc7+ {[%clk 0:00:09]}  Bxc7 {[%clk 0:01:40]} 35. Qe3 {[%clk 0:00:05]}  Re1+ {[%clk 0:01:39]} 36. Kd3 {[%clk 0:00:05]}  Rxe3+ {[%clk 0:01:40]} 37. Bxe3 {[%clk 0:00:05]}  Qxb1+ {[%clk 0:01:40]} 38. Ke2 {[%clk 0:00:05]}  Bxf4 {[%clk 0:01:37]} 39. Bxf4+ {[%clk 0:00:01]}  Qxf4 {[%clk 0:01:38]} 40. c4 {[%clk 0:00:02]}  Qc2+ {[%clk 0:01:37]} 41. Ke1 {[%clk 0:00:01]}  Qff2# {[%clk 0:01:37]} 0-1


[Site "https://www.chess.com"]

[Event "Titled Tuesday Blitz December 20 Late 2022"]
[White "Gomes, Luiz Alexandre de Souza"]
[Black "Ardila, Oscar Humberto"]
[WhiteFideId "2102790"]
[BlackFideId "4404742"]
[WhiteElo "2372"]
[BlackElo "1961"]
[Result "1-0"]
[Round "11"]
[TimeControl "180+1"]
[Date "2022.12.21"]
[WhiteClock "0:00:19"]
[BlackClock "0:00:16"]

1. e4 {[%clk 0:03:00]}  e5 {[%clk 0:03:00]} 2. Nf3 {[%clk 0:02:57]}  Nc6 {[%clk 0:03:00]} 3. Bb5 {[%clk 0:02:57]}  a6 {[%clk 0:02:59]} 4. Ba4 {[%clk 0:02:57]}  Nf6 {[%clk 0:02:58]} 5. O-O {[%clk 0:02:58]}  b5 {[%clk 0:02:59]} 6. Bb3 {[%clk 0:02:57]}  Be7 {[%clk 0:02:59]} 7. Re1 {[%clk 0:02:58]}  O-O {[%clk 0:02:59]} 8. h3 {[%clk 0:02:58]}  d6 {[%clk 0:03:00]} 9. c3 {[%clk 0:02:58]}  Na5 {[%clk 0:03:00]} 10. Bc2 {[%clk 0:02:59]}  c5 {[%clk 0:03:01]} 11. d3 {[%clk 0:03:00]}  Qc7 {[%clk 0:03:01]} 12. Nbd2 {[%clk 0:03:01]}  c4 {[%clk 0:03:00]} 13. d4 {[%clk 0:03:00]}  Nc6 {[%clk 0:02:59]} 14. d5 {[%clk 0:03:00]}  Nb8 {[%clk 0:03:00]} 15. Nf1 {[%clk 0:02:59]}  Nbd7 {[%clk 0:03:00]} 16. Ng3 {[%clk 0:02:59]}  Nc5 {[%clk 0:03:00]} 17. Nh2 {[%clk 0:02:52]}  a5 {[%clk 0:02:56]} 18. Qf3 {[%clk 0:02:52]}  b4 {[%clk 0:02:55]} 19. Nf5 {[%clk 0:02:50]}  Bxf5 {[%clk 0:02:54]} 20. Qxf5 {[%clk 0:02:51]}  Qd7 {[%clk 0:02:52]} 21. Qf3 {[%clk 0:02:51]}  h6 {[%clk 0:02:49]} 22. Be3 {[%clk 0:02:50]}  Rfc8 {[%clk 0:02:48]} 23. Nf1 {[%clk 0:02:42]}  Rab8 {[%clk 0:02:43]} 24. Bxc5 {[%clk 0:02:25]}  Rxc5 {[%clk 0:02:42]} 25. Ne3 {[%clk 0:02:25]}  a4 {[%clk 0:02:35]} 26. cxb4 {[%clk 0:02:08]}  Rxb4 {[%clk 0:02:34]} 27. Rab1 {[%clk 0:02:08]}  g6 {[%clk 0:02:30]} 28. Rec1 {[%clk 0:02:06]}  Bd8 {[%clk 0:02:25]} 29. a3 {[%clk 0:01:57]}  Rb8 {[%clk 0:02:21]} 30. Qd1 {[%clk 0:01:54]}  Ra8 {[%clk 0:02:16]} 31. Qe2 {[%clk 0:01:48]}  Qc8 {[%clk 0:02:15]} 32. f3 {[%clk 0:01:46]}  Nh5 {[%clk 0:02:13]} 33. Qd1 {[%clk 0:01:41]}  Bg5 {[%clk 0:02:10]} 34. Kf2 {[%clk 0:01:38]}  c3 {[%clk 0:02:06]} 35. b3 {[%clk 0:01:23]}  axb3 {[%clk 0:02:04]} 36. Rxb3 {[%clk 0:01:24]}  Rb8 {[%clk 0:01:51]} 37. Rcb1 {[%clk 0:01:24]}  Rxb3 {[%clk 0:01:48]} 38. Rxb3 {[%clk 0:01:25]}  Kg7 {[%clk 0:01:47]} 39. a4 {[%clk 0:01:20]}  Qa6 {[%clk 0:01:44]} 40. Rb4 {[%clk 0:01:01]}  Qa7 {[%clk 0:01:41]} 41. Qd3 {[%clk 0:01:00]}  Nf4 {[%clk 0:01:39]} 42. Qf1 {[%clk 0:00:52]}  Qa5 {[%clk 0:01:36]} 43. Qb1 {[%clk 0:00:49]}  Rc7 {[%clk 0:01:09]} 44. Rb5 {[%clk 0:00:47]}  Qa7 {[%clk 0:01:09]} 45. Rb6 {[%clk 0:00:47]}  Nh5 {[%clk 0:01:04]} 46. Ng4 {[%clk 0:00:39]}  Bh4+ {[%clk 0:00:59]} 47. Ke2 {[%clk 0:00:34]}  f5 {[%clk 0:00:59]} 48. exf5 {[%clk 0:00:33]}  Nf4+ {[%clk 0:00:58]} 49. Kf1 {[%clk 0:00:31]}  h5 {[%clk 0:00:35]} 50. Ne3 {[%clk 0:00:31]}  Qa5 {[%clk 0:00:28]} 51. fxg6 {[%clk 0:00:29]}  Kf6 {[%clk 0:00:26]} 52. Rxd6+ {[%clk 0:00:28]}  Kg7 {[%clk 0:00:25]} 53. Nf5+ {[%clk 0:00:28]}  Kg8 {[%clk 0:00:25]} 54. Nxh4 {[%clk 0:00:28]}  Qc5 {[%clk 0:00:22]} 55. Rd8+ {[%clk 0:00:27]}  Kg7 {[%clk 0:00:21]} 56. Nf5+ {[%clk 0:00:27]}  Kf6 {[%clk 0:00:22]} 57. g7 {[%clk 0:00:20]}  Rxg7 {[%clk 0:00:17]} 58. Nxg7 {[%clk 0:00:20]}  Kxg7 {[%clk 0:00:17]} 59. Qb7+ {[%clk 0:00:17]}  Kf6 {[%clk 0:00:16]} 60. Qc6+ {[%clk 0:00:18]}  Qxc6 {[%clk 0:00:16]} 61. dxc6 {[%clk 0:00:19]} 1-0


[Site "https://www.chess.com"]